bitfinex-derivatives/quotes_SOLF0:USTF0_20251202
["timestamp","ask_amount","ask_price","bid_price","bid_amount"]
[1764686368895,3.09901631,131.88,131.87,62.0]
[1764686369083,3.09901631,131.88,131.86,0.05152687]
[1764686369084,0.04901631,131.88,131.86,0.05152687]
[1764686369380,3.09901631,131.88,131.86,0.05152687]
[1764686369986,3.05,131.87,131.86,0.05152687]
[1764686370585,9.8757,131.85,131.8,3.11]
[1764686371082,9.8757,131.85,131.76,3.11]
[1764686371083,3.05,131.83,131.76,3.11]
[1764686371283,6.8274,131.82,131.76,3.11]
[1764686371479,0.04966723,131.8,131.78,0.05164284]
[1764686372885,0.04966723,131.8,131.78,3.36164284]
[1764686373085,66.26,131.85,131.78,3.36164284]
[1764686373286,3.27,131.84,131.75,3.31]
[1764686373493,109.4642,131.83,131.75,3.31]
[1764686373983,0.05087595,131.8,131.78,0.0563889]
[1764686374284,3.32087595,131.8,131.78,0.0563889]
[1764686374581,0.05087595,131.8,131.78,0.0563889]
[1764686375179,0.05087595,131.8,131.78,62.0563889]
[1764686375478,0.05087595,131.8,131.78,65.3663889]
[1764686375880,6.8259,131.85,131.79,3.31]
[1764686376079,3.27,131.85,131.78,62.0]
[1764686376279,6.8264,131.84,131.78,62.0]
[1764686376680,3.27,131.84,131.78,62.0]
[1764686376888,3.27,131.84,131.8,0.04947932]
[1764686377384,3.27,131.82,131.8,0.04947932]
[1764686377881,3.27,131.81,131.8,0.04947932]
[1764686378083,3.27,131.86,131.8,0.04947932]
[1764686378285,111.32095195,131.87,131.8,0.04947932]
[1764686378286,3.27,131.84,131.8,0.04947932]
[1764686379288,6.8258,131.85,131.8,3.37947932]
[1764686379486,69.47,131.88,131.81,0.04946339]
[1764686379684,69.47,131.88,131.83,0.05622001]
[1764686379685,3.21,131.87,131.83,0.05622001]
[1764686380092,3.21,131.84,131.83,0.05622001]
[1764686381295,3.21,131.84,131.76,3.33]
[1764686381296,3.21,131.82,131.76,3.33]
[1764686381786,3.21,131.82,131.74,106.2597]
[1764686382399,3.26444615,131.79,131.77,0.05541807]
[1764686383285,3.21,131.78,131.77,0.05541807]
[1764686384083,0.05444615,131.79,131.77,0.05541807]
[1764686384284,0.05444615,131.79,131.78,62.0]
[1764686385296,0.05444615,131.79,131.77,0.05541807]
[1764686386394,10.09344615,131.79,131.77,0.05541807]
[1764686387696,6.88344615,131.79,131.77,0.05541807]
[1764686388305,10.09344615,131.79,131.77,0.05541807]
[1764686388595,6.88344615,131.79,131.77,0.05541807]
[1764686388794,10.09344615,131.79,131.77,0.05541807]
[1764686390694,3.21,131.78,131.77,0.05541807]
[1764686391301,10.09344615,131.79,131.77,0.05541807]
[1764686391696,3.21,131.78,131.77,0.05541807]
[1764686392397,3.21,131.78,131.74,62.0]
[1764686393302,3.21,131.78,131.74,65.33]
[1764686393495,0.05444615,131.79,131.75,0.05041406]
[1764686393700,3.26444615,131.79,131.75,0.05041406]
[1764686394001,10.0399,131.77,131.75,0.05041406]
[1764686394597,3.21,131.76,131.75,0.05041406]
[1764686396897,10.0403,131.76,131.75,0.00041406]
[1764686397203,3.21,131.74,131.68,3.33]
[1764686397398,10.0428,131.72,131.69,62.0]
[1764686397789,3.21,131.72,131.69,62.0]
[1764686397993,3.25865114,131.72,131.69,62.05526326]
[1764686398797,0.04865114,131.72,131.69,62.05526326]
[1764686399710,3.25865114,131.72,131.69,62.05526326]
[1764686400204,3.21,131.7,131.61,10.1681]
[1764686400505,3.21,131.7,131.62,3.33]
[1764686400506,10.0439,131.7,131.62,3.33]
[1764686400902,10.0439,131.7,131.64,3.33]
[1764686401206,0.05452448,131.68,131.66,3.38573306]
[1764686401393,0.04805801,131.68,131.66,3.38573306]
[1764686401906,0.04805801,131.68,131.66,0.05573306]
[1764686402110,10.09265801,131.68,131.66,0.05573306]
[1764686402311,3.21,131.66,131.57,3.33]
[1764686402521,3.21,131.64,131.57,3.33]
[1764686402804,3.21,131.64,131.56,6.8403]
[1764686402805,10.0477,131.62,131.56,6.8403]
[1764686403108,3.21,131.61,131.57,62.0]
[1764686403302,0.05720775,131.6,131.58,0.04805276]
[1764686403498,3.26720775,131.6,131.58,0.04805276]
[1764686404509,10.10600775,131.6,131.58,0.04805276]
[1764686404809,3.21,131.59,131.53,6.8419]
[1764686405206,3.21,131.59,131.53,10.1719]
[1764686405407,66.32,131.61,131.54,10.1714]
[1764686405602,0.05235619,131.59,131.56,0.04808888]
[1764686405911,0.05235619,131.59,131.56,3.37808888]
[1764686406106,3.26235619,131.59,131.56,0.04808888]
[1764686407206,3.21,131.57,131.56,0.04808888]
[1764686407610,3.21,131.57,131.49,10.1741]
[1764686408214,3.21,131.57,131.5,3.33]
[1764686408406,66.34,131.6,131.51,3.33]
[1764686408609,0.05825031,131.57,131.54,3.24830985]
[1764686408811,0.05825031,131.57,131.55,3.2]
[1764686409614,0.05825031,131.57,131.56,3.2]
[1764686409817,0.05825031,131.57,131.56,65.2]
[1764686410116,69.5,131.65,131.57,10.0399]
[1764686410307,3.16,131.65,131.58,3.2]
[1764686411208,3.21742738,131.63,131.6,0.0486168]
[1764686412809,3.16,131.61,131.6,0.0486168]
[1764686414114,69.52,131.61,131.6,0.0486168]
[1764686414911,9.9989,131.6,131.54,62.0]
[1764686415312,3.16,131.6,131.54,62.0]
[1764686415513,3.16,131.55,131.48,66.36]
[1764686415718,3.16,131.55,131.48,69.56]
[1764686415919,0.04940622,131.53,131.5,0.05377638]
[1764686416618,0.04940622,131.53,131.5,3.25377638]
[1764686416822,0.04940622,131.53,131.5,0.05377638]
[1764686417319,3.20940622,131.53,131.5,0.05377638]
[1764686417509,10.05180622,131.53,131.5,0.05377638]
[1764686418323,3.20940622,131.53,131.5,0.05377638]
[1764686419212,109.64870622,131.53,131.5,0.05377638]
[1764686419418,3.16,131.51,131.43,3.2]
[1764686420016,3.16,131.5,131.43,3.2]
[1764686420415,0.05728616,131.48,131.45,0.04873634]
[1764686420624,0.05728616,131.48,131.45,10.09503634]
[1764686420823,0.05728616,131.48,131.45,3.24873634]
[1764686421623,0.05728616,131.48,131.46,62.0]
[1764686421915,0.05728616,131.48,131.47,3.2]
[1764686422321,0.05728616,131.48,131.46,68.8454]
[1764686422616,0.05728616,131.48,131.46,62.0]
[1764686423012,0.05728616,131.48,131.45,0.04873634]
[1764686423320,0.05728616,131.48,131.45,3.24873634]
[1764686423518,3.21728616,131.48,131.45,3.24873634]
[1764686423721,3.21728616,131.48,131.45,0.04873634]
[1764686424721,0.05728616,131.48,131.45,0.04873634]
[1764686424920,3.21728616,131.48,131.45,0.04873634]
[1764686425511,0.05728616,131.48,131.45,3.24873634]
[1764686426123,0.05728616,131.48,131.47,3.2]
[1764686426520,0.05728616,131.48,131.46,62.0]
[1764686426723,0.05728616,131.48,131.45,0.04873634]
[1764686426925,3.21728616,131.48,131.45,0.04873634]
[1764686427322,3.16,131.46,131.45,0.04873634]
[1764686427826,0.05728616,131.48,131.45,0.04873634]
[1764686428323,3.21728616,131.48,131.45,0.04873634]
[1764686428824,0.05728616,131.48,131.45,0.04873634]
[1764686429128,0.05728616,131.48,131.45,3.24873634]
[1764686429827,0.05728616,131.48,131.46,68.8458]
[1764686431222,0.05728616,131.48,131.46,72.0458]
[1764686432018,0.05728616,131.48,131.46,62.0]
[1764686432815,3.21728616,131.48,131.45,0.04873634]
[1764686433319,10.0055,131.47,131.45,0.04873634]
[1764686433520,3.16,131.47,131.45,0.04873634]
[1764686434925,3.24,131.46,131.45,0.04873634]
[1764686436330,4.76,131.46,131.38,66.36]
[1764686436628,69.66,131.46,131.38,3.15]
[1764686436930,73.2662,131.46,131.41,6.8484]
[1764686437134,3.24,131.45,131.39,109.6964]
[1764686437334,0.05070752,131.43,131.41,0.05534014]
[1764686437728,0.05070752,131.43,131.42,9.9979]
[1764686437927,0.05070752,131.43,131.42,6.8479]
[1764686438324,0.05070752,131.43,131.41,0.05534014]
[1764686439334,0.05070752,131.43,131.41,62.05534014]
[1764686440429,0.05070752,131.43,131.41,0.05534014]
[1764686441933,3.22070752,131.43,131.41,0.05534014]
[1764686443631,3.22070752,131.43,131.37,62.0]
[1764686444633,3.22070752,131.43,131.39,0.05686238]
[1764686444936,3.22070752,131.43,131.33,3.36]
[1764686444937,3.17,131.41,131.33,3.36]
[1764686445323,3.17,131.41,131.29,3.36]
[1764686445636,3.17,131.41,131.3,3.36]
[1764686445825,0.05649075,131.37,131.34,3.41226785]
[1764686446224,0.05649075,131.37,131.34,0.05226785]
[1764686446430,3.22649075,131.37,131.34,0.05226785]
[1764686447437,0.05649075,131.37,131.34,3.41226785]
[1764686447944,3.22649075,131.37,131.34,0.05226785]
[1764686448536,0.05649075,131.37,131.34,3.41226785]
[1764686450831,3.22649075,131.37,131.34,0.05226785]
[1764686451537,0.05649075,131.37,131.34,3.41226785]
[1764686453841,3.17,131.44,131.35,3.36]
[1764686454843,0.05807546,131.41,131.38,0.05153942]
[1764686455042,0.05807546,131.41,131.38,3.41153942]
[1764686457042,0.05807546,131.41,131.39,62.0]
[1764686457937,3.22807546,131.41,131.39,62.0]
[1764686458244,0.05807546,131.41,131.39,62.0]
[1764686458748,0.05807546,131.41,131.4,3.36]
[1764686460158,0.05807546,131.41,131.39,62.0]
[1764686460348,3.22807546,131.41,131.38,0.05153942]
[1764686461054,6.8492,131.4,131.38,0.05153942]
[1764686461242,3.17,131.39,131.3,12.03427248]
[1764686461551,109.731,131.38,131.3,3.36]
[1764686461753,6.8509,131.37,131.3,10.214]
[1764686461949,3.17,131.38,131.3,3.36]
[1764686462256,0.05541565,131.35,131.33,0.05051369]
[1764686462852,0.05541565,131.35,131.33,3.41051369]
[1764686463256,0.05541565,131.35,131.33,65.41051369]
[1764686463456,0.05541565,131.35,131.34,3.36]
[1764686464551,106.5122,131.44,131.37,3.36]
[1764686464552,3.17,131.44,131.37,3.36]
[1764686464753,3.17,131.47,131.37,3.36]
[1764686465257,6.8466,131.45,131.39,6.8495]
[1764686465457,0.05452126,131.43,131.41,0.05609474]
[1764686465849,0.05452126,131.43,131.42,10.208]
[1764686466053,22.67065703,131.55,131.42,109.8819]
[1764686466054,3.17,131.5,131.42,109.8819]
[1764686466249,3.17,131.5,131.43,3.36]
[1764686467049,0.05681881,131.48,131.46,3.36]
[1764686467456,3.22681881,131.48,131.45,0.05086698]
[1764686467963,0.05681881,131.48,131.45,0.05086698]
[1764686468260,3.22681881,131.48,131.45,0.05086698]
[1764686468467,0.05681881,131.48,131.45,0.05086698]
[1764686468756,9.94191881,131.48,131.45,0.05086698]
[1764686469566,9.94201881,131.48,131.45,0.05086698]
[1764686469756,3.09681881,131.48,131.45,0.05086698]
[1764686469963,108.05651881,131.48,131.45,0.05086698]
[1764686470259,108.05651881,131.48,131.34,120.38525501]
[1764686470260,3.04,131.42,131.37,3.11]
[1764686470458,3.04,131.42,131.34,3.11]
[1764686470657,6.8492,131.4,131.34,3.11]
[1764686470858,106.5341,131.41,131.34,3.11]
[1764686471057,109.5741,131.41,131.34,3.11]
[1764686471361,6.8501,131.38,131.36,0.05703162]
[1764686471575,9.8901,131.38,131.36,0.05703162]
[1764686471969,3.04,131.37,131.36,0.05703162]
[1764686472462,4.56,131.37,131.36,0.0015669]
[1764686472965,3.04,131.37,131.36,0.0015669]
[1764686473662,3.0903598,131.39,131.36,0.0015669]
[1764686474060,6.8504,131.38,131.36,0.0015669]
[1764686474368,3.04,131.37,131.36,0.0015669]
[1764686476766,0.0503598,131.39,131.38,3.11]
[1764686476964,3.04,131.45,131.38,3.11]
[1764686477268,6.8472,131.44,131.38,3.11]
[1764686477455,106.5106,131.44,131.38,3.11]
[1764686477764,109.5506,131.44,131.36,3.11]
[1764686477965,0.05334231,131.41,131.39,0.05442036]
[1764686478170,6.90204231,131.41,131.39,0.05442036]
[1764686478569,3.04,131.4,131.39,0.05442036]
[1764686478770,3.04,131.4,131.33,3.11]
[1764686479671,0.05194965,131.38,131.35,0.05505774]
[1764686479874,3.09194965,131.38,131.35,0.05505774]
[1764686480667,3.04,131.37,131.35,0.05505774]
[1764686480868,6.90234965,131.38,131.35,0.05505774]
[1764686481164,9.8908,131.37,131.35,0.05505774]
[1764686481370,3.04,131.37,131.35,0.05505774]
[1764686481566,0.05194965,131.38,131.35,0.05505774]
[1764686481768,0.05194965,131.38,131.35,3.41505774]
[1764686482162,0.05194965,131.38,131.35,4.93505774]
[1764686482365,0.05194965,131.38,131.36,3.36]
[1764686484172,0.05194965,131.38,131.37,65.36]
[1764686484377,66.42,131.44,131.38,3.36]
[1764686484566,69.65,131.44,131.38,3.36]
[1764686484876,3.23,131.44,131.38,3.36]
[1764686485170,3.23,131.48,131.38,3.36]
[1764686485374,0.05160887,131.44,131.42,3.41310095]
[1764686486476,0.05160887,131.44,131.42,0.05310095]
[1764686487175,6.89890887,131.44,131.42,0.05310095]
[1764686487367,10.12890887,131.44,131.42,0.05310095]
[1764686487569,3.23,131.43,131.42,0.05310095]
[1764686489068,4.75,131.43,131.42,0.05310095]
[1764686489268,3.23,131.43,131.42,0.05310095]
[1764686489868,73.31890887,131.44,131.42,0.05310095]
[1764686489869,0.05160887,131.44,131.42,0.05310095]
[1764686490070,0.05160887,131.44,131.42,3.41310095]
[1764686490777,109.6503,131.55,131.45,3.36]
[1764686491078,69.65,131.55,131.45,3.36]
[1764686491282,3.23,131.55,131.48,10.2048]
[1764686491483,3.23,131.55,131.48,3.36]
[1764686491669,3.23,131.55,131.45,5.18957]
[1764686491670,10.12436746,131.53,131.5,0.05112634]
[1764686491977,3.28186746,131.53,131.5,0.05112634]
[1764686492167,0.05186746,131.53,131.5,0.05112634]
[1764686492780,0.05186746,131.53,131.5,3.41112634]
[1764686493273,73.2399,131.58,131.51,10.203]
[1764686494077,6.8399,131.58,131.51,10.203]
[1764686494374,3.23,131.54,131.53,0.05696236]
[1764686494570,3.23,131.54,131.52,0.05025488]
[1764686494772,3.28504959,131.54,131.52,0.05217767]
[1764686494979,3.23,131.53,131.52,0.05217767]
[1764686495372,6.8435,131.51,131.45,3.36]
[1764686495673,106.4468,131.52,131.45,3.36]
[1764686496272,3.23,131.53,131.45,65.36]
[1764686496473,0.05703982,131.5,131.48,0.05002889]
[1764686499978,0.05703982,131.5,131.48,3.40002889]
[1764686500771,66.38,131.56,131.48,3.40002889]
[1764686500977,109.4914,131.54,131.45,70.53957]
[1764686501181,109.4914,131.54,131.46,3.35]
[1764686501485,6.843,131.52,131.46,3.35]
[1764686501683,0.05026303,131.5,131.48,0.04972691]
[1764686503778,0.05026303,131.5,131.48,3.39972691]
[1764686505280,9.95436303,131.5,131.48,0.04972691]
[1764686505482,3.06,131.49,131.48,0.04972691]
[1764686507273,6.8458,131.47,131.41,3.35]
[1764686507773,6.8461,131.46,131.41,3.35]
[1764686507973,6.8461,131.46,131.39,6.8493]
[1764686507974,3.06,131.46,131.38,3.35]
[1764686508175,0.05643305,131.43,131.41,0.04902462]
[1764686508888,0.05643305,131.43,131.41,3.39902462]
[1764686511092,0.05643305,131.43,131.41,0.04902462]
[1764686513283,3.11643305,131.43,131.41,0.04902462]
[1764686514982,0.05643305,131.43,131.41,3.39902462]
[1764686515184,109.5094,131.52,131.42,3.35]
[1764686515378,69.42,131.52,131.42,3.35]
[1764686515586,6.8435,131.51,131.42,10.1976]
[1764686515889,3.06,131.51,131.43,3.35]
[1764686516279,3.11048089,131.48,131.46,0.04904665]
[1764686516686,0.05048089,131.48,131.46,0.04904665]
[1764686516882,0.05048089,131.48,131.46,3.39904665]
[1764686517188,0.05048089,131.48,131.46,0.04904665]
[1764686517390,3.11048089,131.48,131.46,0.04904665]
[1764686518181,3.06,131.47,131.46,0.04904665]
[1764686518590,0.05048089,131.48,131.46,0.04904665]
[1764686518795,3.11048089,131.48,131.46,0.04904665]
[1764686519902,9.95548089,131.48,131.46,0.04904665]
[1764686520391,6.8465,131.45,131.4,3.35]
[1764686520582,9.9065,131.45,131.4,3.35]
[1764686520985,109.5716,131.44,131.36,3.35]
[1764686521284,3.06,131.41,131.37,62.0]
[1764686521499,3.06,131.41,131.38,0.0551304]
[1764686521500,3.11170868,131.4,131.38,0.0551304]
[1764686521794,3.06,131.39,131.38,0.05795625]
[1764686522185,109.6119,131.39,131.32,3.35]
[1764686522396,69.42,131.43,131.34,3.35]
[1764686522590,9.9076,131.43,131.36,10.201]
[1764686522789,3.06,131.43,131.36,3.35]
[1764686522987,109.5811,131.43,131.36,3.35]
[1764686523199,3.11231101,131.41,131.38,0.05533945]
[1764686523392,0.05231101,131.41,131.38,3.40533945]
[1764686523595,175.9014,131.48,131.38,3.40533945]
[1764686523798,175.9014,131.48,131.38,3.35]
[1764686524089,3.06,131.47,131.4,3.35]
[1764686524496,0.04817689,131.45,131.42,3.40756023]
[1764686525791,109.61117689,131.45,131.42,0.05756023]
[1764686525992,3.06,131.44,131.42,0.05756023]
[1764686526195,6.8487,131.41,131.38,3.35]
[1764686526698,6.8492,131.4,131.34,6.8518]
[1764686526902,106.5348,131.41,131.35,3.35]
[1764686527097,0.05484926,131.39,131.37,0.05748837]
[1764686527603,0.05484926,131.39,131.37,3.40748837]
[1764686528000,0.05484926,131.39,131.38,65.35]
[1764686528297,0.05484926,131.39,131.38,62.0]
[1764686528494,0.05484926,131.39,131.37,0.05748837]
[1764686529799,6.90454926,131.39,131.37,0.05748837]
[1764686530001,3.16,131.38,131.37,0.05748837]
[1764686530217,3.16,131.38,131.29,18.98962501]
[1764686530218,3.16,131.38,131.3,3.35]
[1764686530390,6.8497,131.39,131.33,3.35]
[1764686531106,0.05418879,131.37,131.35,3.40235896]
[1764686531603,0.05418879,131.37,131.35,62.05235896]
[1764686532500,6.90498879,131.37,131.35,62.05235896]
[1764686532697,0.05418879,131.37,131.35,65.40235896]
[1764686532894,0.05418879,131.37,131.36,3.35]
[1764686533405,69.54,131.44,131.36,3.35]
[1764686534308,3.16,131.43,131.36,3.35]
[1764686534508,0.05185918,131.41,131.38,0.05684661]
[1764686534709,0.05185918,131.41,131.38,3.40684661]
[1764686534895,0.05185918,131.41,131.4,3.35]
[1764686535101,176.0117,131.49,131.4,3.35]
[1764686535297,69.54,131.49,131.42,6.8479]
[1764686535502,69.54,131.49,131.42,10.1979]
[1764686535804,69.54,131.49,131.42,3.35]
[1764686536105,3.21850844,131.47,131.44,0.05699128]
[1764686536709,3.16,131.46,131.38,3.35]
[1764686536902,3.16,131.44,131.35,65.35]
[1764686537401,69.54,131.44,131.35,65.35]
[1764686537602,10.0087,131.41,131.36,10.2011]
[1764686537808,0.05101403,131.4,131.37,0.04975161]
[1764686539106,0.05101403,131.4,131.37,3.39975161]
[1764686539308,0.05101403,131.4,131.37,10.25015161]
[1764686539512,10.0098,131.39,131.37,0.04975161]
[1764686539812,3.16,131.38,131.37,0.04975161]
[1764686548719,3.16,131.39,131.37,0.04975161]
[1764686548914,3.16,131.39,131.3,3.35]
[1764686548915,109.7151,131.39,131.3,3.35]
[1764686549112,3.16,131.38,131.3,3.35]
[1764686549309,3.16,131.35,131.27,13.80005501]
[1764686549516,3.16,131.35,131.27,3.35]
[1764686550017,0.05590651,131.32,131.3,3.39982354]
[1764686550521,0.05590651,131.32,131.31,65.35]
[1764686550823,10.0109,131.37,131.32,3.35]
[1764686551012,3.16,131.37,131.32,3.35]
[1764686551921,0.05371167,131.36,131.33,0.04978739]
[1764686552122,6.8517,131.35,131.33,0.04978739]
[1764686552915,0.05371167,131.36,131.33,3.39978739]
[1764686553517,3.16,131.35,131.33,3.39978739]
[1764686553716,3.16,131.32,131.25,3.35]
[1764686554118,6.8538,131.31,131.26,6.8563]
[1764686554315,3.16,131.3,131.26,6.8563]
[1764686554715,0.0562096,131.29,131.27,0.04913931]
[1764686555320,0.0562096,131.29,131.27,11.77483931]
[1764686555624,3.16,131.31,131.27,0.04913931]
[1764686556511,3.27,131.29,131.27,0.04913931]
[1764686556715,10.1249,131.29,131.27,0.04913931]
[1764686557018,3.27,131.29,131.27,0.04913931]
[1764686557929,3.27,131.28,131.27,0.04913931]
[1764686559727,9.907,131.25,131.2,4.16197962]
[1764686560020,3.05,131.25,131.2,7.28197962]
[1764686560236,3.05,131.27,131.21,3.12]
[1764686560723,0.05761865,131.25,131.23,0.0537791]
[1764686560929,9.96461865,131.25,131.23,0.0537791]
[1764686561635,3.05,131.24,131.23,0.0537791]
[1764686563027,3.10761865,131.25,131.23,0.0537791]
[1764686563226,0.05761865,131.25,131.23,3.1737791]
[1764686563727,0.05761865,131.25,131.23,0.0537791]
[1764686564432,0.05761865,131.25,131.23,3.1737791]
[1764686564833,0.05761865,131.25,131.23,10.0315791]
[1764686565129,0.05761865,131.25,131.23,3.1737791]
[1764686565336,0.05761865,131.25,131.23,0.0537791]
[1764686566226,0.05761865,131.25,131.23,3.1737791]
[1764686566431,3.05,131.32,131.23,3.1737791]
[1764686566630,6.8539,131.31,131.24,6.8571]
[1764686566825,3.05,131.32,131.24,6.8571]
[1764686567026,3.05,131.31,131.23,3.12]
[1764686567429,0.05169687,131.28,131.26,0.05607791]
[1764686568026,0.05169687,131.28,131.26,3.17607791]
[1764686568535,0.05169687,131.28,131.26,0.05607791]
[1764686571725,0.05169687,131.28,131.26,3.17607791]
[1764686572129,0.05169687,131.28,131.26,10.03237791]
[1764686572330,0.05169687,131.28,131.27,3.12]
[1764686572941,0.05169687,131.28,131.26,6.91237791]
[1764686573145,0.05169687,131.28,131.26,10.03237791]
[1764686574540,0.05169687,131.28,131.26,3.17607791]
[1764686574940,0.05169687,131.28,131.26,10.03237791]
[1764686575246,3.05,131.36,131.27,3.12]
[1764686575442,3.05,131.31,131.25,9.9765]
[1764686576237,0.05269423,131.29,131.27,0.05800653]
[1764686576846,3.10269423,131.29,131.27,0.05800653]
[1764686577636,0.05269423,131.29,131.27,0.05800653]
[1764686578144,3.10269423,131.29,131.27,0.05800653]
[1764686578734,0.05269423,131.29,131.27,3.17800653]
[1764686579740,0.05269423,131.29,131.27,0.05800653]
[1764686579939,0.05269423,131.29,131.27,3.17800653]
[1764686580343,3.05,131.33,131.27,109.82490653]
[1764686580538,3.05,131.33,131.27,3.17800653]
[1764686580740,3.05,131.31,131.27,0.05800653]
[1764686581346,3.05,131.29,131.27,0.05800653]
[1764686581543,0.05715987,131.3,131.27,3.17800653]
[1764686582047,3.10715987,131.3,131.27,0.05800653]
[1764686582234,113.55324554,131.46,131.33,3.12]
[1764686582439,113.55324554,131.46,131.32,106.6047]
[1764686582440,3.05,131.45,131.37,3.12]
[1764686582647,3.05,131.45,131.39,3.12]
[1764686583345,0.04866067,131.43,131.41,0.0518733]
[1764686583650,3.09866067,131.43,131.41,0.0518733]
[1764686584148,0.04866067,131.43,131.41,0.0518733]
[1764686584943,0.04866067,131.43,131.41,3.1718733]
[1764686585249,0.04866067,131.43,131.41,65.1718733]
[1764686585446,3.05,131.49,131.42,3.12]
[1764686585642,3.05,131.52,131.43,3.12]
[1764686585843,106.4535,131.51,131.43,3.12]
[1764686586244,106.4164,131.56,131.43,3.12]
[1764686586245,10.10504554,131.6,131.44,3.12]
[1764686586546,9.33092303,131.62,131.44,3.12]
[1764686586547,3.05,131.62,131.52,3.12]
[1764686586748,3.05,131.62,131.53,3.12]
[1764686586939,3.05,131.62,131.54,3.12]
[1764686587142,3.05,131.65,131.55,3.12]
[1764686587352,3.05,131.65,131.56,3.12]
[1764686587553,106.3185,131.68,131.57,3.12]
[1764686587850,0.05323848,131.61,131.59,3.16829335]
[1764686588052,106.3182,131.68,131.59,3.12]
[1764686588545,109.3636,131.69,131.59,3.12]
[1764686588758,109.5486,131.68,131.59,3.12]
[1764686588937,3.28330616,131.65,131.62,0.05643268]
[1764686589142,0.05330616,131.65,131.62,0.05643268]
[1764686589552,0.05330616,131.65,131.62,3.16643268]
[1764686589855,0.05330616,131.65,131.62,0.05643268]
[1764686590151,0.05330616,131.65,131.62,3.16643268]
[1764686590349,109.5176,131.72,131.62,3.16643268]
[1764686590545,3.23,131.72,131.63,3.11]
[1764686590748,106.2695,131.74,131.63,3.11]
[1764686590957,109.5247,131.71,131.63,3.11]
[1764686591147,106.2996,131.7,131.63,3.11]
[1764686591349,0.05538323,131.68,131.65,0.05629756]
[1764686592059,109.5559,131.67,131.65,0.05629756]
[1764686592245,106.37338323,131.68,131.65,0.05629756]
[1764686592246,3.23,131.66,131.65,0.05629756]
[1764686592445,1.57538323,131.68,131.65,0.05629756]
[1764686592446,3.28538323,131.68,131.65,0.05629756]
[1764686592748,0.05538323,131.68,131.65,0.05629756]
[1764686592943,109.60438323,131.68,131.65,0.05629756]
[1764686593145,3.23,131.67,131.65,0.05629756]
[1764686593445,116.3892,131.67,131.65,0.05629756]
[1764686593645,0.05538323,131.68,131.65,0.05629756]
[1764686594655,3.28538323,131.68,131.65,0.05629756]
[1764686595053,109.5574,131.67,131.65,0.05629756]
[1764686595256,3.23,131.66,131.65,0.05629756]
[1764686595661,3.23,131.63,131.53,3.11]
[1764686595852,106.3667,131.62,131.53,3.11]
[1764686596053,106.3775,131.61,131.53,3.11]
[1764686596650,3.23,131.62,131.53,3.11]
[1764686596848,0.05009995,131.58,131.57,3.11]
[1764686597051,0.04982602,131.59,131.56,0.05756886]
[1764686597268,0.04982602,131.59,131.56,3.16756886]
[1764686597557,0.04982602,131.59,131.56,0.05756886]
[1764686598148,0.04982602,131.59,131.56,3.16756886]
[1764686599452,6.8354,131.67,131.57,109.5095]
[1764686599652,6.8354,131.67,131.58,3.11]
[1764686599856,176.0223,131.69,131.59,3.11]
[1764686599857,3.23,131.69,131.59,3.11]
[1764686600050,172.776,131.71,131.61,3.11]
[1764686600363,0.05088031,131.67,131.65,0.0558952]
[1764686600557,0.05088031,131.67,131.65,3.1658952]
[1764686601052,3.28088031,131.67,131.65,0.0558952]
[1764686601254,106.3322,131.66,131.56,3.11]
[1764686601461,109.5622,131.66,131.56,3.11]
[1764686601655,3.23,131.66,131.56,3.11]
[1764686601961,109.5617,131.66,131.56,3.11]
[1764686602160,10.0657,131.66,131.56,3.11]
[1764686602363,0.04999953,131.62,131.6,3.16098599]
[1764686602564,3.27999953,131.62,131.6,0.05098599]
[1764686603555,6.8381,131.61,131.6,0.05098599]
[1764686603863,10.0681,131.61,131.6,0.05098599]
[1764686604059,6.8381,131.61,131.6,0.05098599]